[Event "*** Titled Tuesday Blitz"]
[Site "Chess.com"]
[Date "2020.05.12"]
[Round "1"]
[White "coalescenet"]
[Black "AVolodin"]
[Result "1-0"]
[WhiteElo "2342"]
[BlackElo "2633"]
[TimeControl "180+1"]
[EndTime "10:09:09 PDT"]
[Termination "coalescenet won by resignation"]

1. d4 {[%clk 0:03:00.9]} 1... d5 {[%clk 0:02:59.8]} 2. c4 {[%clk 0:02:59.9]}
2... e6 {[%clk 0:03:00.3]} 3. Nc3 {[%clk 0:03:00.1]} 3... Nf6 {[%clk 0:03:00.6]}
4. Bg5 {[%clk 0:03:00]} 4... Be7 {[%clk 0:03:00.9]} 5. cxd5 {[%clk 0:02:59]}
5... exd5 {[%clk 0:03:00.7]} 6. e3 {[%clk 0:02:59]} 6... O-O {[%clk 0:03:00.6]}
7. Bd3 {[%clk 0:02:59]} 7... c6 {[%clk 0:02:59.6]} 8. Qc2 {[%clk 0:02:58.3]}
8... h6 {[%clk 0:02:59.8]} 9. Bh4 {[%clk 0:02:57.5]} 9... Nbd7 {[%clk
0:02:58.6]} 10. Nge2 {[%clk 0:02:56.6]} 10... Re8 {[%clk 0:02:58.6]} 11. O-O
{[%clk 0:02:56.7]} 11... Ne4 {[%clk 0:02:58.7]} 12. Bxe7 {[%clk 0:02:54.3]}
12... Qxe7 {[%clk 0:02:59.6]} 13. Rae1 {[%clk 0:02:51.2]} 13... Ndf6 {[%clk
0:02:59.8]} 14. Nxe4 {[%clk 0:02:46.6]} 14... dxe4 {[%clk 0:02:57.6]} 15. Bc4
{[%clk 0:02:46.8]} 15... Bf5 {[%clk 0:02:57.2]} 16. Ng3 {[%clk 0:02:38.7]} 16...
Bg6 {[%clk 0:02:56.9]} 17. a4 {[%clk 0:02:38.7]} 17... h5 {[%clk 0:02:57.1]} 18.
Qd1 {[%clk 0:02:31.5]} 18... h4 {[%clk 0:02:56.8]} 19. Nh1 {[%clk 0:02:30.8]}
19... Rad8 {[%clk 0:02:50.7]} 20. Qe2 {[%clk 0:02:22.5]} 20... Bh5 {[%clk
0:02:45.7]} 21. Qc2 {[%clk 0:02:17.1]} 21... Qd6 {[%clk 0:02:39.5]} 22. f4
{[%clk 0:02:10.8]} 22... exf3 {[%clk 0:02:39.3]} 23. gxf3 {[%clk 0:02:10.9]}
23... c5 {[%clk 0:02:32.9]} 24. dxc5 {[%clk 0:02:09]} 24... Qe5 {[%clk
0:02:28.4]} 25. f4 {[%clk 0:01:55.8]} 25... Qc7 {[%clk 0:02:25.4]} 26. b4 {[%clk
0:01:55.6]} 26... a5 {[%clk 0:02:24]} 27. b5 {[%clk 0:01:54]} 27... Kh8 {[%clk
0:02:24.4]} 28. Be2 {[%clk 0:01:48]} 28... Bg6 {[%clk 0:02:23]} 29. Qc1 {[%clk
0:01:46.7]} 29... Ne4 {[%clk 0:02:21]} 30. c6 {[%clk 0:01:40.2]} 30... Nd2
{[%clk 0:02:18.3]} 31. Rf2 {[%clk 0:01:39.9]} 31... Rxe3 {[%clk 0:02:18]} 32.
Rd1 {[%clk 0:01:37]} 32... Qd6 {[%clk 0:01:53]} 33. c7 {[%clk 0:01:26.4]} 33...
Rc8 {[%clk 0:01:49.5]} 34. Qxd2 {[%clk 0:01:19]} 34... Qxd2 {[%clk 0:01:44.2]}
35. Rxd2 {[%clk 0:01:19.9]} 35... Rxc7 {[%clk 0:01:44.9]} 36. Rf1 {[%clk
0:01:01.8]} 36... Bf5 {[%clk 0:01:18]} 37. Nf2 {[%clk 0:00:59.2]} 37... Ra3
{[%clk 0:01:08.7]} 38. Rd5 {[%clk 0:00:45.2]} 38... g6 {[%clk 0:00:56.9]} 39. b6
{[%clk 0:00:42.9]} 39... Rc2 {[%clk 0:00:43.7]} 40. Bb5 {[%clk 0:00:41.5]} 40...
Raa2 {[%clk 0:00:35.5]} 41. Bd3 {[%clk 0:00:35.9]} 41... Rd2 {[%clk 0:00:27.4]}
42. Be4 {[%clk 0:00:27.5]} 42... Rxd5 {[%clk 0:00:10.3]} 43. Bxd5 {[%clk
0:00:28.4]} 43... Rb2 {[%clk 0:00:11.2]} 44. Bxb7 {[%clk 0:00:21.5]} 44... Rxb6
{[%clk 0:00:11.1]} 45. Bd5 {[%clk 0:00:22]} 45... Rb4 {[%clk 0:00:10.2]} 46. Bc6
{[%clk 0:00:20.5]} 46... Rxf4 {[%clk 0:00:09.9]} 47. Re1 {[%clk 0:00:19.3]}
47... Rc4 {[%clk 0:00:09.4]} 48. Bb5 {[%clk 0:00:19]} 48... Rc3 {[%clk
0:00:09.1]} 49. Kg2 {[%clk 0:00:19.1]} 49... h3+ {[%clk 0:00:08]} 50. Kg1 {[%clk
0:00:19.6]} 50... Kg7 {[%clk 0:00:08.5]} 51. Rd1 {[%clk 0:00:18.2]} 51... Ra3
{[%clk 0:00:08.1]} 52. Nd3 {[%clk 0:00:17.5]} 52... Bg4 {[%clk 0:00:06.9]} 53.
Rd2 {[%clk 0:00:17.2]} 53... Be6 {[%clk 0:00:06.2]} 54. Kf2 {[%clk 0:00:17.6]}
54... Bf5 {[%clk 0:00:05.5]} 55. Ne5 {[%clk 0:00:16.6]} 55... f6 {[%clk
0:00:05.1]} 56. Nc4 {[%clk 0:00:16.7]} 56... Rc3 {[%clk 0:00:04.2]} 57. Ne3
{[%clk 0:00:17]} 57... Be6 {[%clk 0:00:03.9]} 58. Nf1 {[%clk 0:00:16.2]} 58...
f5 {[%clk 0:00:03.6]} 59. Rd6 {[%clk 0:00:14.9]} 59... Bf7 {[%clk 0:00:03.8]}
60. Rd7 {[%clk 0:00:14.5]} 60... Kf6 {[%clk 0:00:04.2]} 61. Ra7 {[%clk
0:00:14.8]} 61... g5 {[%clk 0:00:04.1]} 62. Rxa5 {[%clk 0:00:14.7]} 62... Rc2+
{[%clk 0:00:04.6]} 63. Kg3 {[%clk 0:00:11.5]} 63... f4+ {[%clk 0:00:04.7]} 64.
Kf3 {[%clk 0:00:10]} 64... Bd5+ {[%clk 0:00:03.6]} 65. Kg4 {[%clk 0:00:10.3]}
65... Be6+ {[%clk 0:00:04]} 66. Kf3 {[%clk 0:00:10.7]} 66... Bd5+ {[%clk
0:00:02.9]} 67. Kg4 {[%clk 0:00:11.1]} 67... Be6+ {[%clk 0:00:03]} 68. Kf3
{[%clk 0:00:10]} 68... Rc3+ {[%clk 0:00:03.9]} 69. Kf2 {[%clk 0:00:09.8]} 69...
Rc2+ {[%clk 0:00:04.3]} 70. Ke1 {[%clk 0:00:10.2]} 70... Ke5 {[%clk 0:00:04.4]}
71. Bd3+ {[%clk 0:00:09.6]} 71... Kd4 {[%clk 0:00:04.3]} 72. Bxc2 {[%clk
0:00:09.9]} 72... g4 {[%clk 0:00:05.2]} 73. Bg6 {[%clk 0:00:10]} 73... Bc4
{[%clk 0:00:04.2]} 74. Ra6 {[%clk 0:00:10.3]} 74... Ke5 {[%clk 0:00:02.6]} 75.
Ra5+ {[%clk 0:00:09.5]} 75... Kd4 {[%clk 0:00:02.8]} 76. Bf5 {[%clk 0:00:10.4]}
76... g3 {[%clk 0:00:02.1]} 77. Bxh3 {[%clk 0:00:11.3]} 77... gxh2 {[%clk
0:00:01.9]} 78. Nxh2 {[%clk 0:00:12.2]} 78... Ke3 {[%clk 0:00:02.5]} 79. Ra7
{[%clk 0:00:09.7]} 79... Kd4 {[%clk 0:00:02.4]} 80. Re7 {[%clk 0:00:10.6]} 80...
Kd5 {[%clk 0:00:02.4]} 81. Kf2 {[%clk 0:00:11.3]} 81... Kd6 {[%clk 0:00:02.6]}
82. Re1 {[%clk 0:00:12]} 82... Kc5 {[%clk 0:00:02.6]} 83. Nf3 {[%clk 0:00:12.6]}
83... Bb3 {[%clk 0:00:03.5]} 84. Ra1 {[%clk 0:00:12.2]} 84... Kb6 {[%clk
0:00:03.2]} 85. Nd2 {[%clk 0:00:13.1]} 85... Ka6 {[%clk 0:00:04.1]} 86. Nxb3
{[%clk 0:00:12.3]} 1-0

[Event "*** Titled Tuesday Blitz"]
[Site "Chess.com"]
[Date "2020.05.12"]
[Round "1"]
[White "Zakaryan_David"]
[Black "pirulillo"]
[Result "0-1"]
[WhiteElo "2505"]
[BlackElo "2184"]
[TimeControl "180+1"]
[EndTime "10:09:24 PDT"]
[Termination "pirulillo won by checkmate"]

1. d4 {[%clk 0:03:00.9]} 1... Nf6 {[%clk 0:02:58.9]} 2. c4 {[%clk 0:03:01]} 2...
g6 {[%clk 0:02:58.5]} 3. Nc3 {[%clk 0:03:00.7]} 3... Bg7 {[%clk 0:02:58.5]} 4.
e4 {[%clk 0:03:00.7]} 4... d6 {[%clk 0:02:58.6]} 5. Nf3 {[%clk 0:03:01]} 5...
O-O {[%clk 0:02:58.6]} 6. h3 {[%clk 0:03:01.1]} 6... e5 {[%clk 0:02:54.5]} 7. d5
{[%clk 0:03:00.6]} 7... Nh5 {[%clk 0:02:47.5]} 8. g3 {[%clk 0:03:00.4]} 8... Qe8
{[%clk 0:02:45]} 9. Be2 {[%clk 0:02:57.7]} 9... f5 {[%clk 0:02:40.5]} 10. exf5
{[%clk 0:02:56.9]} 10... gxf5 {[%clk 0:02:39]} 11. Nh4 {[%clk 0:02:57.1]} 11...
Nf6 {[%clk 0:02:37.2]} 12. Qc2 {[%clk 0:02:54.9]} 12... e4 {[%clk 0:02:30.4]}
13. Be3 {[%clk 0:02:54.3]} 13... Na6 {[%clk 0:02:20.9]} 14. a3 {[%clk
0:02:53.3]} 14... Nc5 {[%clk 0:02:08.2]} 15. Ng2 {[%clk 0:02:51]} 15... a5
{[%clk 0:02:04]} 16. O-O-O {[%clk 0:02:49.6]} 16... Bd7 {[%clk 0:01:54.1]} 17.
Nf4 {[%clk 0:02:47.8]} 17... b6 {[%clk 0:01:40.9]} 18. Rdg1 {[%clk 0:02:34]}
18... Qe5 {[%clk 0:01:26.3]} 19. Rd1 {[%clk 0:02:22]} 19... a4 {[%clk
0:01:18.4]} 20. Kb1 {[%clk 0:02:20.9]} 20... Nb3 {[%clk 0:01:17.4]} 21. Nb5
{[%clk 0:02:11.9]} 21... Bxb5 {[%clk 0:01:14.2]} 22. cxb5 {[%clk 0:02:12.8]}
22... Rf7 {[%clk 0:01:10.7]} 23. Bc4 {[%clk 0:01:49.4]} 23... Nd7 {[%clk
0:00:51.2]} 24. Ne6 {[%clk 0:01:19.7]} 24... Ndc5 {[%clk 0:00:44.6]} 25. Nd4
{[%clk 0:00:57.5]} 25... Re8 {[%clk 0:00:30.3]} 26. Nxb3 {[%clk 0:00:53.6]}
26... axb3 {[%clk 0:00:29]} 27. Bxb3 {[%clk 0:00:53.6]} 27... Nd3 {[%clk
0:00:24.8]} 28. Rd2 {[%clk 0:00:44.4]} 28... Ra8 {[%clk 0:00:23]} 29. Ka2 {[%clk
0:00:36.3]} 29... Nb4+ {[%clk 0:00:17.4]} 30. Kb1 {[%clk 0:00:36.6]} 30... Nxc2
{[%clk 0:00:17.5]} 31. Rxc2 {[%clk 0:00:37.5]} 31... Rxa3 {[%clk 0:00:16.6]} 32.
Rc3 {[%clk 0:00:20.6]} 32... Ra5 {[%clk 0:00:11.8]} 33. Rd1 {[%clk 0:00:19.3]}
33... Rxb5 {[%clk 0:00:12.1]} 34. Kc2 {[%clk 0:00:18.6]} 34... Qxc3+ {[%clk
0:00:11.7]} 35. bxc3 {[%clk 0:00:18.5]} 35... Be5 {[%clk 0:00:12.3]} 36. c4
{[%clk 0:00:15.7]} 36... Ra5 {[%clk 0:00:11.6]} 37. Bd2 {[%clk 0:00:16.1]} 37...
Ra7 {[%clk 0:00:10.7]} 38. g4 {[%clk 0:00:15.4]} 38... f4 {[%clk 0:00:10.9]} 39.
h4 {[%clk 0:00:15.5]} 39... e3 {[%clk 0:00:11.2]} 40. fxe3 {[%clk 0:00:15.4]}
40... fxe3 {[%clk 0:00:12.1]} 41. Bxe3 {[%clk 0:00:16.3]} 41... Bf4 {[%clk
0:00:11.3]} 42. Bd4 {[%clk 0:00:16.2]} 42... Be5 {[%clk 0:00:10.6]} 43. Be3
{[%clk 0:00:16.6]} 43... Rf3 {[%clk 0:00:10.7]} 44. Re1 {[%clk 0:00:15.9]} 44...
Ra8 {[%clk 0:00:09.4]} 45. Kd3 {[%clk 0:00:14.1]} 45... Raf8 {[%clk 0:00:09.8]}
46. Bd1 {[%clk 0:00:13.7]} 46... Rg3 {[%clk 0:00:10]} 47. Ke4 {[%clk 0:00:11.8]}
47... Re8 {[%clk 0:00:09.5]} 48. Kf5 {[%clk 0:00:11.4]} 48... Bg7 {[%clk
0:00:09.3]} 49. Bf2 {[%clk 0:00:09.9]} 49... Rxe1 {[%clk 0:00:09.9]} 50. Bxe1
{[%clk 0:00:10.8]} 50... Rg1 {[%clk 0:00:10.3]} 51. Bd2 {[%clk 0:00:06.4]} 51...
Rxd1 {[%clk 0:00:10.2]} 52. Bg5 {[%clk 0:00:07.3]} 52... Rd4 {[%clk 0:00:10.3]}
53. Ke6 {[%clk 0:00:07.5]} 53... Rxc4 {[%clk 0:00:10.5]} 54. Bd8 {[%clk
0:00:08.4]} 54... b5 {[%clk 0:00:10.8]} 55. g5 {[%clk 0:00:08.5]} 55... b4
{[%clk 0:00:10.9]} 56. h5 {[%clk 0:00:09.2]} 56... b3 {[%clk 0:00:11.2]} 57. h6
{[%clk 0:00:10.1]} 57... b2 {[%clk 0:00:11.4]} 58. hxg7 {[%clk 0:00:10.2]} 58...
b1=Q {[%clk 0:00:11.1]} 59. Bf6 {[%clk 0:00:10.6]} 59... Qg6 {[%clk 0:00:11.3]}
60. Kd7 {[%clk 0:00:11.5]} 60... Rd4 {[%clk 0:00:11.3]} 61. Kc6 {[%clk
0:00:11.7]} 61... Rxd5 {[%clk 0:00:11.7]} 62. Kxc7 {[%clk 0:00:12.5]} 62... Kf7
{[%clk 0:00:12]} 63. Kc6 {[%clk 0:00:12.8]} 63... Qxg7 {[%clk 0:00:12.4]} 64.
Kxd5 {[%clk 0:00:13]} 64... Qxf6 {[%clk 0:00:12.2]} 65. gxf6 {[%clk 0:00:12.9]}
65... Kxf6 {[%clk 0:00:12.7]} 66. Kxd6 {[%clk 0:00:13.8]} 66... Kf5 {[%clk
0:00:13.2]} 67. Kd5 {[%clk 0:00:14.7]} 67... Kf4 {[%clk 0:00:13.1]} 68. Kd4
{[%clk 0:00:15.6]} 68... h5 {[%clk 0:00:13.5]} 69. Kd3 {[%clk 0:00:16.1]} 69...
Kf3 {[%clk 0:00:14]} 70. Kd2 {[%clk 0:00:16.6]} 70... h4 {[%clk 0:00:14.4]} 71.
Ke1 {[%clk 0:00:17]} 71... Kg2 {[%clk 0:00:15]} 72. Ke2 {[%clk 0:00:17.9]} 72...
h3 {[%clk 0:00:15.5]} 73. Ke3 {[%clk 0:00:18.8]} 73... h2 {[%clk 0:00:16.1]} 74.
Ke2 {[%clk 0:00:19.7]} 74... h1=Q {[%clk 0:00:16.6]} 75. Ke3 {[%clk 0:00:20.6]}
75... Qf1 {[%clk 0:00:17]} 76. Ke4 {[%clk 0:00:19.8]} 76... Qf3+ {[%clk
0:00:16.9]} 77. Ke5 {[%clk 0:00:20]} 77... Qg4 {[%clk 0:00:16.6]} 78. Kd5 {[%clk
0:00:19.6]} 78... Qf4 {[%clk 0:00:16.9]} 79. Kc5 {[%clk 0:00:19.7]} 79... Qe4
{[%clk 0:00:17.1]} 80. Kd6 {[%clk 0:00:19.7]} 80... Qf5 {[%clk 0:00:17.1]} 81.
Kc6 {[%clk 0:00:19.2]} 81... Qe5 {[%clk 0:00:17.2]} 82. Kb6 {[%clk 0:00:19.1]}
82... Qd5 {[%clk 0:00:17.3]} 83. Kc7 {[%clk 0:00:19.5]} 83... Qe6 {[%clk
0:00:17.8]} 84. Kb7 {[%clk 0:00:19.5]} 84... Qd6 {[%clk 0:00:18.1]} 85. Ka8
{[%clk 0:00:12.3]} 85... Qd7 {[%clk 0:00:17.5]} 86. Kb8 {[%clk 0:00:09.6]} 86...
Kf3 {[%clk 0:00:17.9]} 87. Ka8 {[%clk 0:00:10]} 87... Ke4 {[%clk 0:00:18.5]} 88.
Kb8 {[%clk 0:00:10.9]} 88... Kd5 {[%clk 0:00:18.8]} 89. Ka8 {[%clk 0:00:11.8]}
89... Kc6 {[%clk 0:00:19]} 90. Kb8 {[%clk 0:00:12.7]} 90... Kb6 {[%clk
0:00:19.2]} 91. Ka8 {[%clk 0:00:13.6]} 91... Qc8# {[%clk 0:00:19.5]} 0-1

[Event "*** Titled Tuesday Blitz"]
[Site "Chess.com"]
[Date "2020.05.12"]
[Round "1"]
[White "VitaliyBernadskiy"]
[Black "Isajevsky_Anton"]
[Result "1/2-1/2"]
[WhiteElo "2744"]
[BlackElo "2406"]
[TimeControl "180+1"]
[EndTime "10:09:47 PDT"]
[Termination "Game drawn - insufficient material"]

1. e4 {[%clk 0:03:00.9]} 1... c5 {[%clk 0:02:58.7]} 2. Nf3 {[%clk 0:03:00.9]}
2... d6 {[%clk 0:02:58.9]} 3. d4 {[%clk 0:03:00.9]} 3... cxd4 {[%clk 0:02:59.8]}
4. Nxd4 {[%clk 0:03:01.7]} 4... Nf6 {[%clk 0:03:00]} 5. Nc3 {[%clk 0:03:02.3]}
5... a6 {[%clk 0:03:00.5]} 6. Be3 {[%clk 0:03:02.6]} 6... e5 {[%clk 0:02:59.9]}
7. Nf3 {[%clk 0:03:02.9]} 7... Qc7 {[%clk 0:02:58.7]} 8. h3 {[%clk 0:02:56]}
8... h6 {[%clk 0:02:57.4]} 9. Nd2 {[%clk 0:02:47]} 9... Be6 {[%clk 0:02:55.8]}
10. g4 {[%clk 0:02:45.1]} 10... Nbd7 {[%clk 0:02:48.7]} 11. Bg2 {[%clk
0:02:45.3]} 11... Be7 {[%clk 0:02:46.3]} 12. O-O {[%clk 0:02:44.6]} 12... Nb6
{[%clk 0:02:31.5]} 13. a4 {[%clk 0:02:42.9]} 13... Nc4 {[%clk 0:02:30]} 14. Nxc4
{[%clk 0:02:42.4]} 14... Qxc4 {[%clk 0:02:29.9]} 15. Re1 {[%clk 0:02:43.3]}
15... O-O {[%clk 0:02:23.5]} 16. a5 {[%clk 0:02:43.4]} 16... Rac8 {[%clk
0:02:10.4]} 17. Qd2 {[%clk 0:02:41.3]} 17... Rfd8 {[%clk 0:01:46.8]} 18. Bb6
{[%clk 0:02:40.2]} 18... Re8 {[%clk 0:01:46.5]} 19. Rec1 {[%clk 0:02:37.9]}
19... Bd7 {[%clk 0:01:18.8]} 20. Be3 {[%clk 0:02:32.2]} 20... Red8 {[%clk
0:01:09.2]} 21. Nd5 {[%clk 0:02:12]} 21... Nxd5 {[%clk 0:00:57.7]} 22. exd5
{[%clk 0:02:12.9]} 22... Re8 {[%clk 0:00:48.8]} 23. c3 {[%clk 0:02:12.5]} 23...
f5 {[%clk 0:00:42]} 24. b3 {[%clk 0:02:11.2]} 24... Qc7 {[%clk 0:00:31.9]} 25.
gxf5 {[%clk 0:02:11.1]} 25... Bxf5 {[%clk 0:00:32.1]} 26. c4 {[%clk 0:02:12]}
26... Qd7 {[%clk 0:00:29.7]} 27. Kh2 {[%clk 0:02:11]} 27... Rf8 {[%clk 0:00:30]}
28. b4 {[%clk 0:02:10.7]} 28... Rf6 {[%clk 0:00:20.2]} 29. c5 {[%clk 0:02:10.2]}
29... Rcf8 {[%clk 0:00:13.9]} 30. c6 {[%clk 0:02:10]} 30... Qc8 {[%clk
0:00:13.5]} 31. b5 {[%clk 0:02:05.4]} 31... axb5 {[%clk 0:00:13]} 32. cxb7
{[%clk 0:02:05.8]} 32... Qxb7 {[%clk 0:00:13]} 33. a6 {[%clk 0:02:06.7]} 33...
Qa8 {[%clk 0:00:12.6]} 34. a7 {[%clk 0:02:06]} 34... Rg6 {[%clk 0:00:12.9]} 35.
Rg1 {[%clk 0:01:49.3]} 35... Bg5 {[%clk 0:00:09.5]} 36. Bh1 {[%clk 0:01:45.8]}
36... Bxe3 {[%clk 0:00:09.5]} 37. Qxe3 {[%clk 0:01:45.6]} 37... Rgf6 {[%clk
0:00:09.4]} 38. Qb6 {[%clk 0:01:36.3]} 38... Bd7 {[%clk 0:00:09.6]} 39. Ra2
{[%clk 0:01:31.3]} 39... Rf4 {[%clk 0:00:08.7]} 40. Qxd6 {[%clk 0:01:29]} 40...
Rxf2+ {[%clk 0:00:08.3]} 41. Rxf2 {[%clk 0:01:28.1]} 41... Rxf2+ {[%clk
0:00:09.2]} 42. Rg2 {[%clk 0:01:18.7]} 42... Qxa7 {[%clk 0:00:09.8]} 43. Qxe5
{[%clk 0:01:17.2]} 43... Rxg2+ {[%clk 0:00:09.2]} 44. Bxg2 {[%clk 0:01:18.1]}
44... Qc5 {[%clk 0:00:05.8]} 45. Qb8+ {[%clk 0:01:04.3]} 45... Kf7 {[%clk
0:00:04.7]} 46. Qf4+ {[%clk 0:01:00.5]} 46... Kg8 {[%clk 0:00:04.4]} 47. Qb8+
{[%clk 0:00:44.2]} 47... Kf7 {[%clk 0:00:04.1]} 48. Qd8 {[%clk 0:00:44.8]} 48...
Qd6+ {[%clk 0:00:03]} 49. Kh1 {[%clk 0:00:43]} 49... b4 {[%clk 0:00:03.4]} 50.
Qh4 {[%clk 0:00:38.3]} 50... g5 {[%clk 0:00:02.4]} 51. Qe4 {[%clk 0:00:36.6]}
51... b3 {[%clk 0:00:01.4]} 52. Qf3+ {[%clk 0:00:36.7]} 52... Qf6 {[%clk
0:00:01.7]} 53. Qxb3 {[%clk 0:00:37.4]} 53... Qa1+ {[%clk 0:00:02.3]} 54. Kh2
{[%clk 0:00:36.8]} 54... Qe5+ {[%clk 0:00:02.9]} 55. Kg1 {[%clk 0:00:37]} 55...
Qe1+ {[%clk 0:00:02.7]} 56. Bf1 {[%clk 0:00:34.9]} 56... Qe5 {[%clk 0:00:03.1]}
57. Qf3+ {[%clk 0:00:33.6]} 57... Qf6 {[%clk 0:00:02.8]} 58. Qe3 {[%clk
0:00:33.3]} 58... Qf4 {[%clk 0:00:02.2]} 59. Qd3 {[%clk 0:00:31.6]} 59... Qe5
{[%clk 0:00:02.3]} 60. Qh7+ {[%clk 0:00:31.3]} 60... Ke8 {[%clk 0:00:01.3]} 61.
Qd3 {[%clk 0:00:25.7]} 61... Ke7 {[%clk 0:00:01.2]} 62. Bg2 {[%clk 0:00:25.4]}
62... Kd6 {[%clk 0:00:01.6]} 63. Qg6+ {[%clk 0:00:24.9]} 63... Kc5 {[%clk
0:00:01.5]} 64. Qc2+ {[%clk 0:00:23.7]} 64... Kd6 {[%clk 0:00:01.6]} 65. Qd2
{[%clk 0:00:24.1]} 65... Qf4 {[%clk 0:00:01.5]} 66. Qe2 {[%clk 0:00:22.8]} 66...
Qd4+ {[%clk 0:00:01.7]} 67. Kh1 {[%clk 0:00:21.6]} 67... Qe5 {[%clk 0:00:01.9]}
68. Qa6+ {[%clk 0:00:20.9]} 68... Ke7 {[%clk 0:00:02.5]} 69. Qa3+ {[%clk
0:00:20.3]} 69... Qd6 {[%clk 0:00:02.4]} 70. Qe3+ {[%clk 0:00:20.3]} 70... Kf6
{[%clk 0:00:02.9]} 71. Be4 {[%clk 0:00:18.8]} 71... Kg7 {[%clk 0:00:03.1]} 72.
Kg2 {[%clk 0:00:17.3]} 72... Qe5 {[%clk 0:00:03]} 73. Qd3 {[%clk 0:00:15.1]}
73... g4 {[%clk 0:00:02.2]} 74. hxg4 {[%clk 0:00:13.9]} 74... Bxg4 {[%clk
0:00:03.1]} 75. d6 {[%clk 0:00:13.6]} 75... h5 {[%clk 0:00:03]} 76. d7 {[%clk
0:00:13.1]} 76... Bxd7 {[%clk 0:00:02.7]} 77. Qxd7+ {[%clk 0:00:14]} 77... Kf6
{[%clk 0:00:03.3]} 78. Qc6+ {[%clk 0:00:13.7]} 78... Qe6 {[%clk 0:00:02.8]} 79.
Qc3+ {[%clk 0:00:13.2]} 79... Qe5 {[%clk 0:00:03.3]} 80. Qf3+ {[%clk 0:00:13.7]}
80... Kg5 {[%clk 0:00:03.5]} 81. Qe3+ {[%clk 0:00:10.8]} 81... Qf4 {[%clk
0:00:03.3]} 82. Qc5+ {[%clk 0:00:10.9]} 82... Kf6 {[%clk 0:00:03.8]} 83. Bf3
{[%clk 0:00:09.5]} 83... h4 {[%clk 0:00:03.7]} 84. Qc6+ {[%clk 0:00:08]} 84...
Ke7 {[%clk 0:00:03.5]} 85. Kf1 {[%clk 0:00:05.6]} 85... Kf7 {[%clk 0:00:01.5]}
86. Qd5+ {[%clk 0:00:05.1]} 86... Ke7 {[%clk 0:00:01.8]} 87. Ke2 {[%clk
0:00:05.4]} 87... Kf6 {[%clk 0:00:01.6]} 88. Qh5 {[%clk 0:00:04.8]} 88... Qe5+
{[%clk 0:00:01.4]} 89. Qxe5+ {[%clk 0:00:04]} 89... Kxe5 {[%clk 0:00:02.3]} 90.
Kf2 {[%clk 0:00:04.8]} 90... h3 {[%clk 0:00:03.1]} 91. Kg3 {[%clk 0:00:05]}
91... h2 {[%clk 0:00:04]} 92. Kxh2 {[%clk 0:00:05.4]} 1/2-1/2